[Event "Elite Hotels Open 2019"]
[Site "Vaxjo"]
[Date "2019.02.09"]
[Round "6.14"]
[White "Burwick, Malte"]
[Black "Wernberg, Hugo"]
[Result "1-0"]
[ECO "A06"]
[WhiteElo "2247"]
[BlackElo "1994"]
[Annotator "NA"]
[PlyCount "79"]
[EventDate "2019.02.08"]
[EventType "swiss"]
[EventCountry "SWE"]
[SourceTitle "playchess.com"]
[Source "ChessBase"]
[SourceQuality "1"]
[TimeControl "5400+30"]

1. Nf3 {[%emt 0:00:26]} d5 {[%emt 0:00:00]} 2. g3 {[%emt 0:00:12]} Nf6 {[%emt 0:00:00]} 3. Bg2 {[%emt 0:00:08]} c6 {[%emt 0:00:03]} 4. O-O {[%emt 0:00:18]} h6 {[%emt 0:00:13]} 5. b3 {[%emt 0:03:49]} Bf5 {[%emt 0:00:31]} 6. Bb2 {[%emt 0:00:09]} e6 {[%emt 0:00:30]} 7. d3 {[%emt 0:02:15]} Bc5 {[%emt 0:02:40]} 8. c4 {[%emt 0:02:25]} O-O {[%emt 0:01:07]} 9. Nbd2 {[%emt 0:05:31]} Re8 {[%emt 0:02:05]} 10. Ne5 {[%emt 0:07:15]} d4 {[%emt 0:04:05]} 11. a3 {[%emt 0:05:04]} Nbd7 {[%emt 0:05:33]} 12. Nxd7 {[%emt 0:00:44]} Qxd7 {[%emt 0:02:01]} 13. b4 {[%emt 0:00:26]} Bb6 {[%emt 0:00:50]} 14. a4 {[%emt 0:03:08]} e5 {[%emt 0:05:38]} 15. a5 {[%emt 0:01:32]} Bc7 {[%emt 0:01:26]} 16. a6 {[%emt 0:00:05]} b6 {[%emt 0:01:08]} 17. Qa4 {[%emt 0:08:34]} b5 {[%emt 0:08:23]} 18. Qc2 {[%emt 0:01:12]} bxc4 {[%emt 0:01:55]} 19. Qxc4 {[%emt 0:00:52]} Nd5 {[%emt 0:02:22]} 20. b5 {[%emt 0:03:32]} Be6 {[%emt 0:01:04]} 21. bxc6 {[%emt 0:02:42]} Qd8 {[%emt 0:00:45]} 22. Qa4 {[%emt 0:07:01]} Qg5 {[%emt 0:03:39]} 23. Ne4 {[%emt 0:08:25]} Qh5 {[%emt 0:02:35]} 24. Nc5 {[%emt 0:13:51]} Qxe2 {[%emt 0:04:55]} 25. Nxe6 {[%emt 0:00:08]} fxe6 {[%emt 0:00:42]} 26. Qa3 {[%emt 0:10:11]} Rab8 {[%emt 0:01:45]} 27. Rab1 {[%emt 0:00:25]} Rf8 {[%emt 0:22:47]} 28. Bh3 {[%emt 0:09:27]} Nb4 {[%emt 0:10:55]} 29. Bxd4 {[%emt 0:02:29]} Nc2 {[%emt 0:10:44]} 30. Rxb8 {[%emt 0:00:16]} Rxb8 {[%emt 0:00:02]} 31. Qe7 {[%emt 0:00:49]} Nxd4 {[%emt 0:01:13]} 32. Qxc7 {[%emt 0:00:17]} Nf3+ {[%emt 0:01:21]} 33. Kg2 {[%emt 0:00:40]} Rf8 {[%emt 0:00:38]} 34. Bxe6+ {[%emt 0:01:12]} Kh8 {[%emt 0:00:13]} 35. Qxa7 {[%emt 0:00:42]} Nd4 {[%emt 0:02:14]} 36. Bd5 {[%emt 0:00:10]} Qxd3 {[%emt 0:00:56]} 37. Qe7 {[%emt 0:00:28]} Qf5 {[%emt 0:00:33]} 38. a7 {[%emt 0:00:30]} Nc2 {[%emt 0:00:16]} 39. Qxf8+ {[%emt 0:00:19]} Qxf8 {[%emt 0:00:17]} 40. c7 {[%emt 0:00:12]} 1-0

[Event "Elite Hotels Open 2019"]
[Site "Vaxjo"]
[Date "2019.02.09"]
[Round "6.15"]
[White "Jakenberg, Jussi"]
[Black "Walinder, Lars"]
[Result "0-1"]
[ECO "C01"]
[WhiteElo "2098"]
[BlackElo "2245"]
[Annotator "NA"]
[PlyCount "86"]
[EventDate "2019.02.08"]
[EventType "swiss"]
[EventCountry "SWE"]
[SourceTitle "playchess.com"]
[Source "ChessBase"]
[SourceQuality "1"]
[TimeControl "5400+30"]

1. e4 {[%emt 0:00:00]} e6 {[%emt 0:00:00]} 2. d4 {[%emt 0:00:00]} d5 {[%emt 0:00:00]} 3. exd5 {[%emt 0:00:00]} exd5 {[%emt 0:00:00]} 4. Nf3 {[%emt 0:00:01]} Bd6 {[%emt 0:00:26]} 5. c4 {[%emt 0:00:28]} Nf6 {[%emt 0:00:55]} 6. Nc3 {[%emt 0:00:43]} O-O {[%emt 0:01:28]} 7. cxd5 {[%emt 0:01:08]} h6 {[%emt 0:06:02]} 8. Be2 {[%emt 0:06:34]} Nbd7 {[%emt 0:01:09]} 9. O-O {[%emt 0:00:58]} Nb6 {[%emt 0:00:47]} 10. Ne5 {[%emt 0:01:24]} Nbxd5 {[%emt 0:01:57]} 11. Bf3 {[%emt 0:02:15]} Be6 {[%emt 0:13:00]} 12. Re1 {[%emt 0:02:37]} c6 {[%emt 0:03:59]} 13. a3 {[%emt 0:06:50]} Qc7 {[%emt 0:04:11]} 14. h3 {[%emt 0:01:48]} Rad8 {[%emt 0:02:46]} 15. Qc2 {[%emt 0:08:03]} Rfe8 {[%emt 0:04:43]} 16. Bd2 {[%emt 0:03:39]} Qb6 {[%emt 0:05:47]} 17. Nxd5 {[%emt 0:04:39]} Bxd5 {[%emt 0:11:31]} 18. Bxd5 {[%emt 0:03:56]} Nxd5 {[%emt 0:03:06]} 19. Bc3 {[%emt 0:05:50]} Nxc3 {[%emt 0:03:43]} 20. bxc3 {[%emt 0:00:54]} Bxe5 {[%emt 0:00:15]} 21. Rxe5 {[%emt 0:02:19]} Rxe5 {[%emt 0:00:56]} 22. dxe5 {[%emt 0:00:02]} Qc5 {[%emt 0:02:36]} 23. Re1 {[%emt 0:04:36]} Qxa3 {[%emt 0:08:46]} 24. Re3 {[%emt 0:04:43]} Qe7 {[%emt 0:02:04]} 25. Qe4 {[%emt 0:04:22]} Qe6 {[%emt 0:01:42]} 26. Kh2 {[%emt 0:02:49]} Rd5 {[%emt 0:02:58]} 27. f4 {[%emt 0:01:17]} g6 {[%emt 0:01:11]} 28. Rg3 {[%emt 0:12:35]} a5 {[%emt 0:05:12]} 29. h4 {[%emt 0:03:01]} h5 {[%emt 0:00:29]} 30. Rg5 {[%emt 0:01:29]} Kg7 {[%emt 0:03:10]} 31. Qe3 {[%emt 0:09:46]} b5 {[%emt 0:01:07]} 32. Qa7 {[%emt 0:02:06]} a4 {[%emt 0:00:16]} 33. Kh1 {[%emt 0:03:28]} c5 {[%emt 0:01:18]} 34. Qb8 {[%emt 0:00:43]} Rd1+ {[%emt 0:03:45]} 35. Kh2 {[%emt 0:00:02]} Qc4 {[%emt 0:00:12]} 36. e6 {[%emt 0:01:32]} Qxe6 {[%emt 0:00:28]} 37. Qxb5 {[%emt 0:00:39]} Qe4 {[%emt 0:02:11]} 38. Qb8 {[%emt 0:00:29]} a3 {[%emt 0:02:22]} 39. Rxc5 {[%emt 0:00:43]} a2 {[%emt 0:00:25]} 40. Rc8 {[%emt 0:00:47]} a1=Q {[%emt 0:00:15]} 41. Rg8+ {[%emt 0:00:06]} Kf6 {[%emt 0:00:16]} 42. Qb6+ {[%emt 0:00:59]} Qe6 {[%emt 0:00:10]} 43. Qd4+ {[%emt 0:00:22]} Rxd4 {[%emt 0:00:08]} 0-1

[Event "Elite Hotels Open 2019"]
[Site "Vaxjo"]
[Date "2019.02.09"]
[Round "6.16"]
[White "Ask, Josef"]
[Black "Attefall, Fredrik"]
[Result "1/2-1/2"]
[ECO "C42"]
[WhiteElo "2164"]
[BlackElo "1993"]
[Annotator "NA"]
[PlyCount "31"]
[EventDate "2019.02.08"]
[EventType "swiss"]
[EventCountry "SWE"]
[SourceTitle "playchess.com"]
[Source "ChessBase"]
[SourceQuality "1"]
[TimeControl "5400+30"]

1. e4 {[%emt 0:00:00]} e5 {[%emt 0:00:00]} 2. Nf3 {[%emt 0:00:00]} Nf6 {[%emt 0:00:00]} 3. Nxe5 d6 {[%emt 0:00:00]} 4. Nf3 {[%emt 0:00:04]} Nxe4 {[%emt 0:00:00]} 5. Nc3 {[%emt 0:00:09]} Nxc3 {[%emt 0:00:21]} 6. dxc3 {[%emt 0:00:11]} Be7 {[%emt 0:02:34]} 7. Bf4 {[%emt 0:00:21]} Nc6 {[%emt 0:01:11]} 8. Qd2 {[%emt 0:00:24]} Be6 {[%emt 0:00:21]} 9. O-O-O {[%emt 0:00:32]} Qd7 {[%emt 0:01:16]} 10. Kb1 {[%emt 0:00:31]} a6 {[%emt 0:00:25]} 11. h4 {[%emt 0:02:18]} O-O-O {[%emt 0:02:21]} 12. g3 {[%emt 0:01:42]} Bf6 {[%emt 0:04:37]} 13. Bg2 {[%emt 0:00:55]} Rhe8 {[%emt 0:04:37]} 14. Ng5 {[%emt 0:06:01]} Bxg5 {[%emt 0:08:38]} 15. hxg5 {[%emt 0:00:28]} Bf5 {[%emt 0:00:48]} 16. Rhe1 1/2-1/2

[Event "Elite Hotels Open 2019"]
[Site "Vaxjo"]
[Date "2019.02.10"]
[Round "7.5"]
[White "Seo, Jung Min"]
[Black "Burwick, Malte"]
[Result "1-0"]
[ECO "A10"]
[WhiteElo "2368"]
[BlackElo "2247"]
[Annotator "NA"]
[PlyCount "81"]
[EventDate "2019.02.08"]
[EventType "swiss"]
[EventCountry "SWE"]
[SourceTitle "playchess.com"]
[Source "ChessBase"]
[SourceQuality "1"]
[TimeControl "5400+30"]

1. c4 {[%emt 0:00:00]} g6 {[%emt 0:02:01]} 2. g3 {[%emt 0:00:00]} Bg7 {[%emt 0:00:08]} 3. Bg2 {[%emt 0:00:00]} d6 {[%emt 0:01:09]} 4. Nc3 {[%emt 0:00:20]} e5 {[%emt 0:04:27]} 5. d3 {[%emt 0:00:42]} f5 {[%emt 0:03:40]} 6. e3 {[%emt 0:01:12]} Nf6 {[%emt 0:01:18]} 7. Nge2 {[%emt 0:00:35]} O-O {[%emt 0:00:55]} 8. O-O {[%emt 0:00:16]} Nc6 {[%emt 0:08:40]} 9. Rb1 {[%emt 0:11:24]} a5 {[%emt 0:05:23]} 10. a3 {[%emt 0:00:25]} g5 {[%emt 0:01:33]} 11. b4 {[%emt 0:11:15]} axb4 {[%emt 0:00:20]} 12. axb4 {[%emt 0:00:01]} Kh8 {[%emt 0:03:27]} 13. Nd5 {[%emt 0:04:17]} Nxd5 {[%emt 0:07:21]} 14. cxd5 {[%emt 0:00:10]} Ne7 {[%emt 0:00:13]} 15. f4 {[%emt 0:02:20]} Ng6 {[%emt 0:05:23]} 16. Qc2 {[%emt 0:06:29]} Rf7 {[%emt 0:05:19]} 17. Bd2 {[%emt 0:04:30]} gxf4 {[%emt 0:12:34]} 18. exf4 {[%emt 0:01:26]} Qg8 {[%emt 0:02:32]} 19. b5 {[%emt 0:08:09]} b6 {[%emt 0:00:57]} 20. fxe5 {[%emt 0:00:55]} Bxe5 {[%emt 0:00:56]} 21. Kh1 {[%emt 0:03:59]} Bb7 {[%emt 0:08:46]} 22. d4 {[%emt 0:01:35]} Bg7 {[%emt 0:00:08]} 23. Qc4 {[%emt 0:08:10]} h5 {[%emt 0:12:12]} 24. Bg5 {[%emt 0:01:57]} Qh7 {[%emt 0:01:30]} 25. Qd3 {[%emt 0:01:19]} Re8 {[%emt 0:06:27]} 26. Rbe1 {[%emt 0:01:50]} h4 {[%emt 0:01:21]} 27. Nf4 {[%emt 0:01:57]} Rxe1 {[%emt 0:00:08]} 28. Rxe1 {[%emt 0:00:01]} Nxf4 {[%emt 0:00:10]} 29. gxf4 {[%emt 0:02:17]} Qg8 {[%emt 0:02:28]} 30. Qh3 {[%emt 0:02:14]} Qa8 {[%emt 0:01:57]} 31. Qf3 {[%emt 0:02:31]} Kg8 {[%emt 0:00:11]} 32. Bxh4 {[%emt 0:00:25]} Bxd4 {[%emt 0:00:14]} 33. Bg5 {[%emt 0:01:07]} Rg7 {[%emt 0:01:36]} 34. h4 {[%emt 0:00:15]} Rh7 {[%emt 0:00:20]} 35. Kh2 {[%emt 0:01:01]} Rf7 {[%emt 0:00:54]} 36. Re6 {[%emt 0:00:29]} Qa1 {[%emt 0:00:13]} 37. Qh5 {[%emt 0:02:11]} Bg1+ {[%emt 0:01:01]} 38. Kh3 {[%emt 0:00:18]} Qc3+ {[%emt 0:00:34]} 39. Bf3 {[%emt 0:01:29]} Bc5 {[%emt 0:00:33]} 40. Re8+ {[%emt 0:00:30]} Rf8 {[%emt 0:00:01]} 41. Qg6+ {[%emt 0:00:07]} 1-0

[Event "Elite Hotels Open 2019"]
[Site "Vaxjo"]
[Date "2019.02.10"]
[Round "7.6"]
[White "Walinder, Lars"]
[Black "Barkhagen, Jonas"]
[Result "1-0"]
[ECO "E94"]
[WhiteElo "2245"]
[BlackElo "2429"]
[Annotator "NA"]
[PlyCount "73"]
[EventDate "2019.02.08"]
[EventType "swiss"]
[EventCountry "SWE"]
[SourceTitle "playchess.com"]
[Source "ChessBase"]
[SourceQuality "1"]
[TimeControl "5400+30"]

1. c4 {[%emt 0:01:17]} e5 {[%emt 0:01:06]} 2. Nc3 {[%emt 0:00:30]} Nf6 {[%emt 0:00:56]} 3. Nf3 {[%emt 0:00:27]} d6 {[%emt 0:00:19]} 4. d4 {[%emt 0:02:15]} Nbd7 {[%emt 0:00:06]} 5. e4 {[%emt 0:01:25]} g6 {[%emt 0:02:57]} 6. Be2 {[%emt 0:00:30]} Bg7 {[%emt 0:00:11]} 7. O-O {[%emt 0:00:15]} O-O {[%emt 0:00:06]} 8. d5 {[%emt 0:01:11]} Nc5 {[%emt 0:01:51]} 9. Qc2 {[%emt 0:02:32]} a5 {[%emt 0:00:07]} 10. Bg5 {[%emt 0:00:37]} h6 {[%emt 0:01:53]} 11. Be3 {[%emt 0:00:12]} Ng4 {[%emt 0:06:08]} 12. Bxc5 {[%emt 0:00:32]} dxc5 {[%emt 0:00:30]} 13. h3 {[%emt 0:00:08]} Nf6 {[%emt 0:00:12]} 14. Nxe5 {[%emt 0:00:30]} Nxd5 {[%emt 0:00:25]} 15. cxd5 {[%emt 0:04:16]} Bxe5 {[%emt 0:00:07]} 16. f4 {[%emt 0:00:39]} Bd4+ {[%emt 0:02:16]} 17. Kh2 {[%emt 0:04:20]} g5 {[%emt 0:14:47]} 18. Nb5 {[%emt 0:18:18]} Be3 {[%emt 0:12:45]} 19. fxg5 {[%emt 0:07:35]} Qxg5 {[%emt 0:02:13]} 20. Rf3 {[%emt 0:06:23]} Bf4+ {[%emt 0:01:26]} 21. Kh1 {[%emt 0:02:43]} Ra6 {[%emt 0:07:11]} 22. Raf1 {[%emt 0:03:26]} Rg6 {[%emt 0:00:49]} 23. Bc4 {[%emt 0:01:11]} Bd6 {[%emt 0:05:42]} 24. Nxd6 {[%emt 0:29:43]} cxd6 {[%emt 0:00:28]} 25. e5 {[%emt 0:00:52]} dxe5 {[%emt 0:01:10]} 26. d6 {[%emt 0:01:14]} Be6 {[%emt 0:06:43]} 27. Bxe6 {[%emt 0:01:41]} Rxe6 {[%emt 0:00:05]} 28. Qb3 {[%emt 0:05:30]} Rg6 {[%emt 0:15:17]} 29. R1f2 {[%emt 0:00:09]} Rg7 {[%emt 0:00:09]} 30. Qxb7 {[%emt 0:00:56]} Qc1+ {[%emt 0:00:14]} 31. Kh2 {[%emt 0:00:24]} Qd1 {[%emt 0:00:05]} 32. Rf6 {[%emt 0:00:55]} Qd4 {[%emt 0:00:22]} 33. Qe7 {[%emt 0:01:08]} e4 {[%emt 0:02:26]} 34. d7 {[%emt 0:01:15]} e3 {[%emt 0:01:10]} 35. Rxf7 {[%emt 0:01:04]} exf2 {[%emt 0:01:24]} 36. Rxf8+ {[%emt 0:01:09]} Kh7 {[%emt 0:00:09]} 37. d8=Q {[%emt 0:00:10]} 1-0

[Event "Elite Hotels Open 2019"]
[Site "Vaxjo"]
[Date "2019.02.10"]
[Round "7.7"]
[White "Brynell, Stellan"]
[Black "Jogstad, Daniel"]
[Result "1/2-1/2"]
[ECO "E62"]
[WhiteElo "2400"]
[BlackElo "2127"]
[Annotator "NA"]
[PlyCount "101"]
[EventDate "2019.02.08"]
[EventType "swiss"]
[EventCountry "SWE"]
[SourceTitle "playchess.com"]
[Source "ChessBase"]
[SourceQuality "1"]
[TimeControl "5400+30"]

1. d4 {[%emt 0:00:00]} Nf6 {[%emt 0:00:00]} 2. c4 {[%emt 0:00:00]} g6 {[%emt 0:00:00]} 3. g3 {[%emt 0:00:14]} Bg7 {[%emt 0:00:00]} 4. Bg2 {[%emt 0:00:03]} O-O {[%emt 0:00:00]} 5. Nc3 {[%emt 0:00:04]} d6 {[%emt 0:00:00]} 6. Nf3 {[%emt 0:00:06]} c6 {[%emt 0:00:00]} 7. O-O {[%emt 0:00:10]} Qa5 {[%emt 0:00:03]} 8. e4 {[%emt 0:00:37]} Bg4 {[%emt 0:00:05]} 9. h3 {[%emt 0:01:42]} Bxf3 {[%emt 0:00:04]} 10. Bxf3 {[%emt 0:01:01]} e5 {[%emt 0:00:17]} 11. d5 {[%emt 0:03:16]} cxd5 {[%emt 0:00:05]} 12. cxd5 {[%emt 0:00:35]} Rc8 {[%emt 0:00:05]} 13. Bd2 {[%emt 0:05:46]} Nbd7 {[%emt 0:02:08]} 14. Qe2 {[%emt 0:04:17]} Qd8 {[%emt 0:12:20]} 15. Rfc1 {[%emt 0:01:43]} a6 {[%emt 0:05:45]} 16. Be3 {[%emt 0:15:25]} b5 {[%emt 0:03:06]} 17. Qd2 {[%emt 0:05:35]} Nb6 {[%emt 0:01:57]} 18. b3 {[%emt 0:00:19]} Nfd7 {[%emt 0:03:03]} 19. Bg4 {[%emt 0:05:15]} Rc7 {[%emt 0:02:55]} 20. h4 {[%emt 0:00:50]} Qf8 {[%emt 0:01:09]} 21. a4 {[%emt 0:05:56]} f5 {[%emt 0:03:11]} 22. Bd1 {[%emt 0:05:46]} f4 {[%emt 0:06:11]} 23. Bxb6 {[%emt 0:04:29]} Nxb6 {[%emt 0:00:05]} 24. g4 {[%emt 0:00:19]} Qe7 {[%emt 0:03:25]} 25. axb5 {[%emt 0:00:47]} Qxh4 {[%emt 0:00:45]} 26. Bf3 {[%emt 0:02:59]} h5 {[%emt 0:02:27]} 27. gxh5 {[%emt 0:00:17]} gxh5 {[%emt 0:00:16]} 28. Kf1 {[%emt 0:00:44]} Qh3+ {[%emt 0:02:20]} 29. Ke2 {[%emt 0:00:22]} Qc8 {[%emt 0:00:05]} 30. Bxh5 {[%emt 0:08:04]} axb5 {[%emt 0:01:18]} 31. Rxa8 {[%emt 0:06:52]} Nxa8 {[%emt 0:03:08]} 32. Na2 {[%emt 0:00:42]} Rxc1 {[%emt 0:00:03]} 33. Qxc1 {[%emt 0:00:26]} Qxc1 {[%emt 0:00:11]} 34. Nxc1 {[%emt 0:00:02]} Nc7 {[%emt 0:21:32]} 35. Kd2 {[%emt 0:01:49]} Bf6 {[%emt 0:00:13]} 36. Kc3 {[%emt 0:01:01]} Bh4 {[%emt 0:00:04]} 37. Nd3 {[%emt 0:00:05]} Na6 {[%emt 0:00:09]} 38. b4 {[%emt 0:07:22]} Kf8 {[%emt 0:02:57]} 39. Kd2 {[%emt 0:00:15]} Bd8 {[%emt 0:01:07]} 40. Bg4 {[%emt 0:00:06]} Ke7 {[%emt 0:04:22]} 41. Bc8 {[%emt 0:00:47]} Nb8 {[%emt 0:00:24]} 42. Ke2 {[%emt 0:01:21]} Bb6 {[%emt 0:00:17]} 43. Kf3 {[%emt 0:01:25]} Kd8 {[%emt 0:00:25]} 44. Bh3 {[%emt 0:00:28]} Bd4 {[%emt 0:01:07]} 45. Ne1 {[%emt 0:06:02]} Kc7 {[%emt 0:01:23]} 46. Nc2 {[%emt 0:00:09]} Bc3 {[%emt 0:02:31]} 47. Bf1 {[%emt 0:00:15]} Kb6 {[%emt 0:03:25]} 48. Na3 {[%emt 0:00:50]} Bxb4 {[%emt 0:00:07]} 49. Nxb5 {[%emt 0:00:05]} Na6 {[%emt 0:01:05]} 50. Kg4 {[%emt 0:00:23]} Nc7 {[%emt 0:00:07]} 51. Nxc7 {[%emt 0:00:06]} 1/2-1/2

[Event "Elite Hotels Open 2019"]
[Site "Vaxjo"]
[Date "2019.02.10"]
[Round "7.8"]
[White "Kucuksari, Kaan"]
[Black "Nilsson, Patrik 1978"]
[Result "0-1"]
[ECO "A80"]
[WhiteElo "2301"]
[BlackElo "2169"]
[Annotator "NA"]
[PlyCount "112"]
[EventDate "2019.02.08"]
[EventType "swiss"]
[EventCountry "SWE"]
[SourceTitle "playchess.com"]
[Source "ChessBase"]
[SourceQuality "1"]
[TimeControl "5400+30"]

1. d4 {[%emt 0:00:00]} f5 {[%emt 0:00:00]} 2. Nf3 {[%emt 0:00:00]} Nf6 {[%emt 0:00:00]} 3. g3 {[%emt 0:00:00]} g6 {[%emt 0:00:04]} 4. Bg2 {[%emt 0:00:00]} Bg7 {[%emt 0:00:23]} 5. O-O {[%emt 0:00:00]} d6 {[%emt 0:00:09]} 6. c4 {[%emt 0:00:09]} O-O {[%emt 0:00:09]} 7. Nc3 {[%emt 0:00:13]} Qe8 {[%emt 0:00:07]} 8. Nd5 {[%emt 0:00:23]} Nxd5 {[%emt 0:02:47]} 9. cxd5 {[%emt 0:00:05]} Nd7 {[%emt 0:00:22]} 10. Qc2 {[%emt 0:00:06]} Nf6 {[%emt 0:06:00]} 11. Ng5 {[%emt 0:01:25]} h6 {[%emt 0:09:20]} 12. Ne6 {[%emt 0:00:03]} Bxe6 {[%emt 0:00:17]} 13. dxe6 {[%emt 0:00:03]} c6 {[%emt 0:00:10]} 14. e4 {[%emt 0:12:08]} fxe4 {[%emt 0:03:17]} 15. Bxe4 {[%emt 0:00:03]} Nxe4 {[%emt 0:00:20]} 16. Qxe4 {[%emt 0:00:04]} d5 {[%emt 0:00:43]} 17. Qg4 {[%emt 0:01:19]} Kh7 {[%emt 0:04:43]} 18. Qh4 {[%emt 0:10:04]} Rf6 {[%emt 0:08:54]} 19. Re1 {[%emt 0:03:36]} Qg8 {[%emt 0:03:00]} 20. g4 {[%emt 0:02:09]} g5 {[%emt 0:08:18]} 21. Bxg5 {[%emt 0:01:57]} Rxe6 {[%emt 0:00:17]} 22. Bd2 {[%emt 0:14:30]} Re8 {[%emt 0:05:43]} 23. Rxe6 {[%emt 0:11:55]} Qxe6 {[%emt 0:00:25]} 24. Re1 {[%emt 0:00:19]} Qg6 {[%emt 0:01:53]} 25. g5 {[%emt 0:00:48]} Bf6 {[%emt 0:04:15]} 26. f4 {[%emt 0:07:19]} Bxd4+ {[%emt 0:03:30]} 27. Kh1 {[%emt 0:00:11]} Bg7 {[%emt 0:05:16]} 28. Qh3 {[%emt 0:12:33]} e6 {[%emt 0:03:47]} 29. Bc3 {[%emt 0:10:46]} d4 {[%emt 0:11:44]} 30. gxh6 {[%emt 0:02:49]} Bf6 {[%emt 0:04:02]} 31. f5 {[%emt 0:04:23]} Qxh6 {[%emt 0:06:00]} 32. Qxh6+ {[%emt 0:00:25]} Kxh6 {[%emt 0:00:05]} 33. Bd2+ {[%emt 0:00:11]} Kh5 {[%emt 0:01:06]} 34. fxe6 {[%emt 0:00:22]} Kg6 {[%emt 0:00:54]} 35. Kg2 {[%emt 0:02:16]} Kf5 {[%emt 0:00:26]} 36. Kf3 {[%emt 0:00:16]} Rxe6 {[%emt 0:00:21]} 37. Rxe6 {[%emt 0:00:28]} Kxe6 {[%emt 0:00:08]} 38. Ke4 {[%emt 0:00:01]} c5 {[%emt 0:00:24]} 39. b4 {[%emt 0:05:37]} c4 {[%emt 0:00:46]} 40. b5 {[%emt 0:00:21]} d3 {[%emt 0:00:43]} 41. Be3 {[%emt 0:00:39]} a6 {[%emt 0:01:47]} 42. bxa6 {[%emt 0:00:17]} bxa6 {[%emt 0:00:05]} 43. Bd2 {[%emt 0:00:27]} c3 {[%emt 0:01:44]} 44. Bxc3 {[%emt 0:00:03]} Bxc3 {[%emt 0:00:08]} 45. Kxd3 {[%emt 0:00:03]} Be5 {[%emt 0:00:39]} 46. h3 {[%emt 0:00:23]} Kd5 {[%emt 0:00:03]} 47. h4 {[%emt 0:00:12]} Bf6 {[%emt 0:00:36]} 48. h5 {[%emt 0:00:08]} Bg7 {[%emt 0:00:04]} 49. Ke2 {[%emt 0:01:00]} Kc4 {[%emt 0:00:09]} 50. Kd2 {[%emt 0:00:07]} Kb4 {[%emt 0:00:20]} 51. Kd3 {[%emt 0:00:28]} a5 {[%emt 0:00:29]} 52. Kc2 {[%emt 0:00:23]} Ka3 {[%emt 0:00:25]} 53. Kb1 {[%emt 0:00:05]} a4 {[%emt 0:00:19]} 54. h6 {[%emt 0:00:21]} Bxh6 {[%emt 0:00:09]} 55. Ka1 {[%emt 0:00:03]} Bg7+ {[%emt 0:00:06]} 56. Kb1 {[%emt 0:00:03]} Bh8 {[%emt 0:00:07]} 0-1

[Event "Elite Hotels Open 2019"]
[Site "Vaxjo"]
[Date "2019.02.10"]
[Round "7.10"]
[White "Hector, Jonny"]
[Black "Dehlin, Gabriel"]
[Result "1-0"]
[ECO "B12"]
[WhiteElo "2488"]
[BlackElo "2090"]
[Annotator "ChessBase"]
[PlyCount "69"]
[EventDate "2019.02.08"]
[EventType "swiss"]
[EventCountry "SWE"]
[SourceTitle "playchess.com"]
[Source "ChessBase"]
[SourceQuality "1"]
[TimeControl "5400+30"]

1. e4 {[%emt 0:00:00]} c6 {[%emt 0:04:51]} 2. d4 {[%emt 0:00:00]} d5 {[%emt 0:00:31]} 3. e5 {[%emt 0:00:00]} Bf5 {[%emt 0:01:26]} 4. h4 {[%emt 0:00:02]} h6 {[%emt 0:01:06]} 5. g4 {[%emt 0:00:53]} Be4 {[%emt 0:04:32]} 6. f3 {[%emt 0:00:26]} Bh7 {[%emt 0:00:47]} 7. e6 {[%emt 0:00:18]} Nf6 {[%emt 0:08:41]} 8. Nh3 {[%emt 0:10:32]} Qd6 {[%emt 0:00:58]} 9. exf7+ {[%emt 0:05:15]} Kxf7 {[%emt 0:03:18]} 10. Qe2 {[%emt 0:05:59]} Qe6 {[%emt 0:12:11]} 11. Qxe6+ {[%emt 0:03:46]} Kxe6 {[%emt 0:00:04]} 12. Nf4+ {[%emt 0:00:33]} Kd6 {[%emt 0:06:15]} 13. g5 {[%emt 0:00:48]} Ne8 {[%emt 0:01:25]} 14. Bh3 {[%emt 0:05:11]} Nc7 {[%emt 0:03:23]} 15. g6 {[%emt 0:03:01]} Bg8 {[%emt 0:00:31]} 16. Nd3 {[%emt 0:04:53]} Ne6 {[%emt 0:03:30]} 17. c3 {[%emt 0:06:49]} c5 {[%emt 0:14:15]} 18. Kf2 {[%emt 0:08:38]} c4 {[%emt 0:06:06]} 19. Ne5 {[%emt 0:01:13]} Nc6 {[%emt 0:02:44]} 20. f4 {[%emt 0:03:07]} Ned8 {[%emt 0:05:21]} 21. b3 {[%emt 0:04:51]} b5 {[%emt 0:02:18]} 22. Re1 {[%emt 0:00:54]} a5 {[%emt 0:04:56]} 23. Na3 {[%emt 0:08:18]} Na7 {[%emt 0:00:22]} 24. bxc4 {[%emt 0:00:54]} dxc4 {[%emt 0:00:45]} 25. Rb1 {[%emt 0:00:50]} Bd5 {[%emt 0:01:58]} 26. Rxb5 {[%emt 0:00:26]} e6 {[%emt 0:02:02]} 27. Naxc4+ {[%emt 0:01:50]} Kc7 {[%emt 0:01:24]} 28. Rxa5 {[%emt 0:01:51]} Be7 {[%emt 0:01:03]} 29. Kg3 {[%emt 0:00:28]} Nb7 {[%emt 0:00:23]} 30. Rxd5 {[%emt 0:01:42]} exd5 {[%emt 0:00:21]} 31. Ne3 {[%emt 0:00:11]} Bf6 {[%emt 0:04:20]} 32. Nxd5+ {[%emt 0:00:29]} Kd6 {[%emt 0:00:36]} 33. Ba3+ {[%emt 0:02:04]} Kxd5 {[%emt 0:00:11]} 34. Bg2+ {[%emt 0:00:08]} Ke6 {[%emt 0:00:38]} 35. d5+ {[%emt 0:00:08] Kxd5} 1-0

[Event "Elite Hotels Open 2019"]
[Site "Vaxjo"]
[Date "2019.02.10"]
[Round "7.11"]
[White "Lindgren, Philip"]
[Black "Bohman Karlholm, Adrian"]
[Result "1-0"]
[ECO "A06"]
[WhiteElo "2379"]
[BlackElo "2075"]
[Annotator "NA"]
[PlyCount "71"]
[EventDate "2019.02.08"]
[EventType "swiss"]
[EventCountry "SWE"]
[SourceTitle "playchess.com"]
[Source "ChessBase"]
[SourceQuality "1"]
[TimeControl "5400+30"]

1. Nf3 {[%emt 0:00:00]} d5 {[%emt 0:00:00]} 2. g3 {[%emt 0:01:02]} Nf6 {[%emt 0:01:01]} 3. Bg2 {[%emt 0:00:23]} Bf5 {[%emt 0:03:30]} 4. c4 {[%emt 0:02:32]} c6 {[%emt 0:04:01]} 5. cxd5 {[%emt 0:03:22]} cxd5 {[%emt 0:02:01]} 6. Qb3 {[%emt 0:00:22]} Qd7 {[%emt 0:10:57]} 7. Ne5 {[%emt 0:16:21]} Qc7 {[%emt 0:03:04]} 8. Nc3 {[%emt 0:01:44]} Nc6 {[%emt 0:05:16]} 9. d4 {[%emt 0:10:02]} e6 {[%emt 0:07:38]} 10. Qa4 {[%emt 0:13:54]} Rc8 {[%emt 0:11:32]} 11. O-O {[%emt 0:04:29]} a6 {[%emt 0:02:29]} 12. Bf4 {[%emt 0:03:47]} Qb6 {[%emt 0:02:53]} 13. Rac1 {[%emt 0:06:00]} Be7 {[%emt 0:03:29]} 14. Nxc6 {[%emt 0:09:05]} Rxc6 {[%emt 0:02:58]} 15. Qb3 {[%emt 0:08:20]} Qxb3 {[%emt 0:02:09]} 16. axb3 {[%emt 0:00:06]} O-O {[%emt 0:03:08]} 17. f3 {[%emt 0:02:39]} Rfc8 {[%emt 0:05:41]} 18. e4 {[%emt 0:00:43]} Bg6 {[%emt 0:01:58]} 19. Rfe1 {[%emt 0:02:36]} Kf8 {[%emt 0:05:13]} 20. Bh3 {[%emt 0:02:22]} Rd8 {[%emt 0:03:36]} 21. Be5 {[%emt 0:00:53]} dxe4 {[%emt 0:03:00]} 22. fxe4 {[%emt 0:01:50]} b5 {[%emt 0:07:54]} 23. d5 {[%emt 0:02:22]} exd5 {[%emt 0:01:30]} 24. exd5 {[%emt 0:00:07]} Rb6 {[%emt 0:00:56]} 25. Bc7 {[%emt 0:01:01]} Bc5+ {[%emt 0:01:49]} 26. Kh1 {[%emt 0:00:21]} Rbd6 {[%emt 0:02:01]} 27. Nxb5 {[%emt 0:03:08]} axb5 {[%emt 0:00:42]} 28. Rxc5 {[%emt 0:03:10]} Ne4 {[%emt 0:01:34]} 29. Bxd6+ {[%emt 0:00:46]} Nxd6 {[%emt 0:00:50]} 30. Rc7 {[%emt 0:00:39]} b4 {[%emt 0:00:59]} 31. Rd7 {[%emt 0:00:40]} Rxd7 {[%emt 0:00:21]} 32. Bxd7 {[%emt 0:00:05]} Be4+ {[%emt 0:00:09]} 33. Kg1 {[%emt 0:00:04]} Bxd5 {[%emt 0:00:05]} 34. Rd1 {[%emt 0:00:07]} Ke7 {[%emt 0:00:58]} 35. Rxd5 {[%emt 0:00:05]} Kxd7 {[%emt 0:00:05]} 36. Rd4 {[%emt 0:00:05]} 1-0